fUST/lending_fUST_20240804
["ID","MTS","AMOUNT","RATE_DAILY","PERIOD"]
[334053213,1722712241584,-249.08038557,0.00013598,2]
[334053215,1722712241595,-153.0,0.00013688,2]
[334053217,1722712241606,-153.0,0.00013688,2]
[334053219,1722712241618,-153.0,0.00013688,2]
[334053221,1722712241629,-153.0,0.00013688,2]
[334053223,1722712241640,-9279.87060986,0.00013688,2]
[334053225,1722712241651,-9279.87060986,0.00013689,2]
[334053227,1722712241662,-633.66,0.00013697,2]
[334053229,1722712241677,-507.47056033,0.00013698,2]
[334053231,1722712241689,-500.0,0.00013698,2]
[334053233,1722712241699,-416.26590705,0.00013698,2]
[334053235,1722712241712,-500.0,0.00013698,2]
[334053237,1722712241724,-500.0,0.00013698,2]
[334053239,1722712241736,-500.0,0.00013698,2]
[334053242,1722712241750,-500.0,0.00013698,2]
[334053244,1722712241761,-500.0,0.00013698,2]
[334053245,1722712241772,-500.0,0.00013698,2]
[334053248,1722712241785,-500.0,0.00013698,2]
[334053249,1722712241795,-600.49035524,0.00013698,2]
[334053251,1722712241805,-500.0,0.00013698,2]
[334053253,1722712241817,-500.0,0.00013698,2]
[334053255,1722712241829,-500.0,0.00013698,2]
[334053258,1722712241842,-524.64534186,0.00013698,2]
[334053260,1722712241854,-500.0,0.00013698,2]
[334053262,1722712241865,-521.83545244,0.00013698,2]
[334053264,1722712241875,-500.0,0.00013698,2]
[334053266,1722712241888,-500.0,0.00013698,2]
[334053268,1722712241901,-500.0,0.00013698,2]
[334053270,1722712241912,-500.0,0.00013698,2]
[334053272,1722712241924,-500.0,0.00013698,2]
[334053274,1722712241937,-502.8140107,0.00013698,2]
[334053276,1722712241948,-500.0,0.00013698,2]
[334053278,1722712241960,-500.0,0.00013698,2]
[334053280,1722712241971,-500.0,0.00013698,2]
[334053282,1722712241982,-500.0,0.00013698,2]
[334053284,1722712241993,-500.0,0.00013698,2]
[334053286,1722712242004,-500.0,0.00013698,2]
[334053288,1722712242016,-500.0,0.00013698,2]
[334053290,1722712242027,-500.0,0.00013698,2]
[334053292,1722712242039,-233.61649993,0.00013698,2]
[334053294,1722712242051,-500.0,0.00013698,2]
[334053296,1722712242062,-500.0,0.00013698,2]
[334053298,1722712242073,-500.0,0.00013698,2]
[334053312,1722712242215,-512.31653046,0.00013698,2]
[334053315,1722712242231,-500.0,0.00013698,2]
[334053317,1722712242240,-500.0,0.00013698,2]
[334053319,1722712242252,-500.0,0.00013698,2]
[334053321,1722712242261,-586.83749382,0.00013698,2]
[334053323,1722712242271,-500.0,0.00013698,2]
[334053325,1722712242281,-500.0,0.00013698,2]
[334053326,1722712242294,-500.0,0.00013698,2]
[334053328,1722712242303,-500.0,0.00013698,2]
[334053330,1722712242313,-500.0,0.00013698,2]
[334053332,1722712242322,-500.0,0.00013698,2]
[334053334,1722712242332,-500.0,0.00013698,2]
[334053336,1722712242341,-500.0,0.00013698,2]
[334053337,1722712242351,-501.48471063,0.00013698,2]
[334053339,1722712242360,-500.0,0.00013698,2]
[334053341,1722712242370,-500.0,0.00013698,2]
[334053343,1722712242380,-500.0,0.00013698,2]
[334053345,1722712242390,-500.0,0.00013698,2]
[334053347,1722712242400,-500.0,0.00013698,2]
[334053349,1722712242409,-523.61736077,0.00013698,2]
[334053351,1722712242419,-500.0,0.00013698,2]
[334053353,1722712242429,-563.01,0.00013698,2]
[334053355,1722712242439,-500.0,0.00013698,2]
[334053356,1722712242448,-214.67892049,0.00013698,2]
[334053358,1722712242458,-500.0,0.00013698,2]
[334053360,1722712242467,-500.0,0.00013698,2]
[334053362,1722712242476,-722.73,0.00013698,2]
[334053364,1722712242485,-398.13269925,0.00013698,2]
[334053366,1722712242495,-500.25558031,0.00013698,2]
[334053367,1722712242504,-500.0,0.00013698,2]
[334053369,1722712242513,-537.79,0.00013698,2]
[334053371,1722712242523,-1177.78,0.00013698,2]
[334053373,1722712242534,-500.0,0.00013698,2]
[334053375,1722712242544,-550.21483176,0.00013698,2]
[334053377,1722712242553,-500.0,0.00013698,2]
[334053378,1722712242563,-502.41947006,0.00013698,2]
[334053380,1722712242574,-500.0,0.00013698,2]
[334053382,1722712242583,-500.0,0.00013698,2]
[334053384,1722712242593,-500.0,0.00013698,2]
[334053386,1722712242602,-500.0,0.00013698,2]
[334053388,1722712242612,-500.0,0.00013698,2]
[334053390,1722712242621,-500.0,0.00013698,2]
[334053392,1722712242632,-500.0,0.00013698,2]
[334053393,1722712242641,-500.0,0.00013698,2]
[334053395,1722712242651,-500.0,0.00013698,2]
[334053397,1722712242661,-500.0,0.00013698,2]
[334053418,1722712242883,-27.15039863,0.00013698,2]
[334053540,1722712244057,-479.81406637,0.00013698,2]
[334053543,1722712244068,-500.0,0.00013698,2]
[334053545,1722712244078,-135.42816646,0.00013698,2]
[334054091,1722712249016,-364.57183354,0.00013698,2]
[334054093,1722712249027,-500.0,0.00013698,2]
[334054095,1722712249038,-500.0,0.00013698,2]
[334054097,1722712249048,-511.15277004,0.00013698,2]
[334054099,1722712249058,-620.11,0.00013698,2]
[334054101,1722712249067,-649.88887321,0.00013698,2]
[334054103,1722712249076,-500.0,0.00013698,2]
[334054105,1722712249086,-500.0,0.00013698,2]
[334054107,1722712249095,-486.27652348,0.00013698,2]
[334059575,1722712321681,500.0,0.00027,120]
[334059581,1722713241160,-273.37336231,9.415e-05,2]
[334059582,1722713241183,-300.0,9.998e-05,2]
[334059583,1722713241204,-163.05415597,9.999e-05,2]
[334059584,1722713241224,-403.7082582,9.999e-05,2]
[334059585,1722713241246,-156.5983355,9.999e-05,2]
[334059586,1722713241267,-506.44029984,9.999e-05,2]
[334059587,1722713241288,-201.45923245,9.999e-05,2]
[334059588,1722713241309,-426.89711274,9.999e-05,2]
[334059589,1722713241330,-300.97176093,9.999e-05,2]
[334059590,1722713241350,-494.10879056,9.999e-05,2]
[334059591,1722713241372,-77.22111108,9.999e-05,2]
[334059593,1722713282653,152.55,0.00027,120]
[334059594,1722713351113,-4483.96024337,9.899e-05,2]
[334059595,1722713351139,-300.0,9.998e-05,2]
[334059596,1722713351167,-77.55446434,9.999e-05,2]
[334059597,1722713351194,-664.18424721,9.999e-05,2]
[334059598,1722713351219,-155.10729065,9.999e-05,2]
[334059599,1722713351242,-160.15094004,9.999e-05,2]
[334059600,1722713351264,-568.42284982,9.999e-05,2]
[334059601,1722713351286,-727.33991579,9.999e-05,2]
[334059602,1722713351308,-155.09104029,9.999e-05,2]
[334059603,1722713351330,-533.78606257,9.999e-05,2]
[334059604,1722713351352,-319.70105146,9.999e-05,2]
[334059605,1722713351372,-256.64294795,9.999e-05,2]
[334059606,1722713351394,-165.52155498,9.999e-05,2]
[334059607,1722713351422,-391.12294837,9.999e-05,2]
[334059608,1722713351444,-309.3349299,9.999e-05,2]
[334059609,1722713351465,-628.03771352,9.999e-05,2]
[334059610,1722713351486,-531.94294972,9.999e-05,2]
[334059611,1722713351508,-209.85118264,9.999e-05,2]
[334059612,1722713351531,-7420.32253458,9.999e-05,2]
[334059613,1722713352118,-3708.48162025,9.999e-05,2]
[334059614,1722713369126,-4346.19558273,9.8e-05,2]
[334059615,1722713369158,-137.76466064,9.8e-05,2]
[334059616,1722713369183,-5158.21567293,9.999e-05,2]
[334059617,1722713369204,-3785.54866294,9.999e-05,2]
[334059618,1722713369328,-163.05415597,9.999e-05,2]
[334059619,1722713369354,-452.92994103,9.999e-05,2]
[334059620,1722713369378,-156.5983355,9.999e-05,2]
[334059621,1722713369401,-426.89711274,9.999e-05,2]
[334059622,1722713369427,-412.91003871,0.0001,2]
[334059623,1722713369449,-412.91003871,0.0001,2]
[334059624,1722713376513,273.37336231,9.9e-05,2]
[334059625,1722713379383,404.72502915,9.999e-05,2]
[334059626,1722713384337,273.37336231,9.9e-05,2]
[334059627,1722713386123,1416.84179042,9.999e-05,2]
[334059628,1722713391262,413.73386929,9.999e-05,2]
[334059629,1722713392464,273.37336231,9.9e-05,2]
[334059630,1722713393938,3044.20378673,9.999e-05,2]
[334059709,1722713434977,-2835.70352642,9.899e-05,2]
[334059711,1722713434990,-1200.97,9.899e-05,2]
[334059737,1722713437944,-12525.35300232,9.899e-05,2]
[334059738,1722713437954,-16562.02652874,9.999e-05,2]
[334059739,1722713437963,-3601.91477368,9.999e-05,2]
[334059740,1722713437974,-721.54,0.00010959,2]
[334059741,1722713437985,-24900.0,0.00011262,2]
[334059742,1722713437995,-8555.24289393,0.00012,2]
[334059744,1722713438875,-332.35496279,0.00012,2]
[334059745,1722713439077,-323.81791502,0.00012,2]
[334059746,1722713439090,-3429.53698317,0.00012,2]
[334059747,1722713439100,-663.95202459,0.0001212,2]
[334059748,1722713439111,-161.78914857,0.0001212,2]
[334059749,1722713439121,-209.85118264,0.0001212,2]
[334059750,1722713439130,-250.95351123,0.0001212,2]
[334059751,1722713439141,-319.59058574,0.0001212,2]
[334059752,1722713439150,-163.05415597,0.0001212,2]
[334059753,1722713439159,-426.89711274,0.0001212,2]
[334059754,1722713439169,-222.77062633,0.0001212,2]
[334059755,1722713439178,-2253.0398834,0.0001212,2]
[334059756,1722713439188,-404.65460675,0.0001212,2]
[334059757,1722713439198,-282.73351605,0.0001212,2]
[334059758,1722713439207,-412.91003871,0.0001212,2]
[334059759,1722713439217,-153.0,0.00012866,2]
[334059760,1722713439226,-153.0,0.00012866,2]
[334059761,1722713439236,-153.0,0.00012866,2]
[334059762,1722713439246,-167.507494,0.00012986,2]
[334059763,1722713439261,-1000.0,0.00013,13]
[334059764,1722713439282,-153.0,0.00013,2]
[334059765,1722713439291,-153.0,0.00013178,2]
[334059766,1722713439301,-885.75913011,0.00013498,2]
[334059767,1722713439313,-1384.97741781,0.00013498,2]
[334059769,1722713439322,-4813.6680821,0.00013554,2]
[334059770,1722713439331,-712.44731387,0.00013598,2]
[334059771,1722713439341,-351.91565772,0.00013658,2]
[334059772,1722713439351,-200.0,0.00013673,2]
[334059773,1722713439361,-762.39,0.00013687,2]
[334059774,1722713439370,-153.0,0.00013688,2]
[334059775,1722713439380,-351.6571644,0.00013688,2]
[334059776,1722713439389,-32049.6985369,0.00013688,2]
[334059777,1722713439398,-19040.20729014,0.00013688,5]
[334059778,1722713439408,-2979.35334499,0.00013689,2]
[334059811,1722713442649,-154.74467129,9.999e-05,2]
[334059815,1722713442659,-7703.87950061,0.00013689,2]
[334059818,1722713442669,-762.39,0.00013697,2]
[334059820,1722713442678,-762.39,0.00013697,2]
[334059823,1722713442687,-762.39,0.00013697,2]
[334059826,1722713442697,-510.52449572,0.00013698,2]
[334059828,1722713442707,-500.0,0.00013698,2]
[334059830,1722713442716,-501.48471063,0.00013698,2]
[334059832,1722713442725,-500.0,0.00013698,2]
[334059834,1722713442735,-523.61736077,0.00013698,2]
[334059836,1722713442744,-500.0,0.00013698,2]
[334059838,1722713442753,-398.13269925,0.00013698,2]
[334059841,1722713442762,-500.0,0.00013698,2]
[334059843,1722713442771,-500.0,0.00013698,2]
[334059845,1722713442792,-500.0,0.00013698,2]
[334059847,1722713442803,-500.0,0.00013698,2]
[334059849,1722713442812,-500.0,0.00013698,2]
[334059851,1722713442822,-500.0,0.00013698,2]
[334059853,1722713442835,-500.0,0.00013698,2]
[334059855,1722713442844,-188.0102848,0.00013698,2]
[334059857,1722713442853,-500.0,0.00013698,2]
[334059859,1722713442863,-508.22712239,0.00013698,2]
[334059860,1722713442873,-500.0,0.00013698,2]
[334059862,1722713442882,-500.0,0.00013698,2]
[334059864,1722713442891,-500.0,0.00013698,2]
[334059866,1722713442901,-500.0,0.00013698,2]
[334059868,1722713442911,-500.0,0.00013698,2]
[334059871,1722713442920,-495.70446836,0.00013698,2]
[334059873,1722713442931,-500.0,0.00013698,2]
[334059875,1722713442941,-500.0,0.00013698,2]
[334059877,1722713442950,-500.0,0.00013698,2]
[334059879,1722713442961,-500.0,0.00013698,2]
[334059881,1722713442970,-503.54419415,0.00013698,2]
[334059883,1722713442982,-506.34448599,0.00013698,2]
[334059885,1722713442991,-500.0,0.00013698,2]
[334059887,1722713443001,-500.0,0.00013698,2]
[334059889,1722713443011,-500.0,0.00013698,2]
[334059891,1722713443020,-500.0,0.00013698,2]
[334059893,1722713443040,-500.0,0.00013698,2]
[334059895,1722713443050,-500.0,0.00013698,2]
[334059897,1722713443063,-214.67892049,0.00013698,2]
[334059899,1722713443072,-500.0,0.00013698,2]
[334059901,1722713443081,-722.73,0.00013698,2]
[334059903,1722713443090,-500.0,0.00013698,2]
[334059905,1722713443101,-233.61649993,0.00013698,2]
[334059907,1722713443110,-500.0,0.00013698,2]
[334059909,1722713443119,-512.31653046,0.00013698,2]
[334059911,1722713443129,-500.0,0.00013698,2]
[334059913,1722713443138,-500.0,0.00013698,2]
[334059916,1722713443148,-515.3322998,0.00013698,2]
[334059919,1722713443159,-500.0,0.00013698,2]
[334059923,1722713443168,-500.0,0.00013698,2]
[334059926,1722713443177,-500.0,0.00013698,2]
[334059929,1722713443186,-500.0,0.00013698,2]
[334059932,1722713443195,-500.0,0.00013698,2]
[334059934,1722713443205,-500.0,0.00013698,2]
[334059938,1722713443214,-500.0,0.00013698,2]
[334059941,1722713443223,-500.0,0.00013698,2]
[334059944,1722713443232,-500.0,0.00013698,2]
[334059947,1722713443242,-200.0,0.00013698,2]
[334059950,1722713443254,-500.0,0.00013698,2]
[334059953,1722713443263,-500.0,0.00013698,2]
[334059955,1722713443272,-511.11563533,0.00013698,2]
[334059957,1722713443294,-500.0,0.00013698,2]
[334059959,1722713443306,-500.0,0.00013698,2]
[334059961,1722713443316,-500.0,0.00013698,2]
[334059963,1722713443326,-500.0,0.00013698,2]
[334059965,1722713443335,-500.0,0.00013698,2]
[334059967,1722713443344,-500.0,0.00013698,2]
[334059969,1722713443353,-500.0,0.00013698,2]
[334059971,1722713443362,-500.0,0.00013698,2]
[334059973,1722713443371,-500.0,0.00013698,2]
[334059975,1722713443381,-537.79,0.00013698,2]
[334059977,1722713443390,-500.0,0.00013698,2]
[334059979,1722713443399,-550.21483176,0.00013698,2]
[334059981,1722713443409,-500.0,0.00013698,2]
[334059983,1722713443418,-500.0,0.00013698,2]
[334059985,1722713443427,-500.0,0.00013698,2]
[334059988,1722713443437,-507.47056033,0.00013698,2]
[334059989,1722713443446,-500.0,0.00013698,2]
[334059991,1722713443456,-500.0,0.00013698,2]
[334059993,1722713443465,-500.0,0.00013698,2]
[334059996,1722713443475,-500.0,0.00013698,2]
[334059997,1722713443484,-594.27,0.00013698,2]
[334059999,1722713443493,-500.0,0.00013698,2]
[334060001,1722713443502,-500.0,0.00013698,2]
[334060003,1722713443512,-500.0,0.00013698,2]
[334060005,1722713443521,-500.0,0.00013698,2]
[334060007,1722713443545,-500.0,0.00013698,2]
[334060010,1722713443555,-500.0,0.00013698,2]
[334060012,1722713443566,-500.0,0.00013698,2]
[334060014,1722713443576,-500.0,0.00013698,2]
[334060016,1722713443586,-500.0,0.00013698,2]
[334060018,1722713443597,-500.0,0.00013698,2]
[334060020,1722713443606,-500.0,0.00013698,2]
[334060022,1722713443618,-416.26590705,0.00013698,2]
[334060024,1722713443627,-500.0,0.00013698,2]
[334060026,1722713443637,-500.0,0.00013698,2]
[334060028,1722713443647,-500.0,0.00013698,2]
[334060030,1722713443656,-500.0,0.00013698,2]
[334060032,1722713443665,-500.0,0.00013698,2]
[334060034,1722713443675,-500.0,0.00013698,2]
[334060036,1722713443684,-2308.83,0.00013698,2]
[334060038,1722713443693,-500.0,0.00013698,2]
[334060040,1722713443704,-500.0,0.00013698,2]
[334060042,1722713443714,-765.91,0.00013698,2]
[334060044,1722713443723,-500.0,0.00013698,2]
[334060046,1722713443732,-500.0,0.00013698,2]
[334060048,1722713443741,-500.0,0.00013698,2]
[334060050,1722713443751,-500.0,0.00013698,2]
[334060052,1722713443761,-762.39,0.00013698,2]
[334060054,1722713443772,-733.14,0.00013698,2]
[334060056,1722713443794,-500.0,0.00013698,2]
[334060058,1722713443805,-500.0,0.00013698,2]
[334060060,1722713443814,-524.64534186,0.00013698,2]
[334060062,1722713443823,-726.54,0.00013698,2]
[334060065,1722713443833,-500.0,0.00013698,2]
[334060066,1722713443842,-500.0,0.00013698,2]
[334060068,1722713443851,-500.0,0.00013698,2]
[334060070,1722713443860,-500.0,0.00013698,2]
[334060072,1722713443869,-500.0,0.00013698,2]
[334060074,1722713443878,-780.51,0.00013698,2]
[334060076,1722713443887,-2645.97,0.00013698,2]
[334060078,1722713443897,-500.0,0.00013698,2]
[334060080,1722713443906,-500.0,0.00013698,2]
[334060082,1722713443916,-500.0,0.00013698,2]
[334060084,1722713443926,-500.0,0.00013698,2]
[334060086,1722713443935,-1403.71,0.00013698,2]
[334060087,1722713443945,-500.0,0.00013698,2]
[334060089,1722713443954,-514.44022575,0.00013698,2]
[334060091,1722713443963,-500.0,0.00013698,2]
[334060093,1722713443973,-600.49035524,0.00013698,2]
[334060095,1722713443983,-500.0,0.00013698,2]
[334060097,1722713443992,-500.0,0.00013698,2]
[334060099,1722713444001,-500.0,0.00013698,2]
[334060101,1722713444010,-516.89,0.00013698,2]
[334060102,1722713444019,-500.0,0.00013698,2]
[334060104,1722713444037,-500.0,0.00013698,2]
[334060106,1722713444046,-500.0,0.00013698,2]
[334060108,1722713444056,-203.83474694,0.00013698,2]
[334060110,1722713444069,-500.0,0.00013698,2]
[334060112,1722713444078,-500.0,0.00013698,2]
[334060114,1722713444087,-500.0,0.00013698,2]
[334060116,1722713444097,-500.0,0.00013698,2]
[334060118,1722713444107,-667.68,0.00013698,2]
[334060120,1722713444116,-586.83749382,0.00013698,2]
[334060122,1722713444126,-500.0,0.00013698,2]
[334060124,1722713444137,-500.0,0.00013698,2]
[334060126,1722713444149,-500.0,0.00013698,2]
[334060128,1722713444158,-500.0,0.00013698,2]
[334060130,1722713444167,-500.0,0.00013698,2]
[334060132,1722713444176,-500.0,0.00013698,2]
[334060134,1722713444185,-500.0,0.00013698,2]
[334060136,1722713444195,-500.0,0.00013698,2]
[334060137,1722713444204,-500.0,0.00013698,2]
[334060139,1722713444213,-500.0,0.00013698,2]
[334060141,1722713444222,-460.52935477,0.00013698,2]
[334060143,1722713444231,-500.0,0.00013698,2]
[334060145,1722713444241,-500.0,0.00013698,2]
[334060147,1722713444250,-500.0,0.00013698,2]
[334060149,1722713444259,-500.0,0.00013698,2]
[334060151,1722713444268,-500.0,0.00013698,2]
[334060153,1722713444287,-500.0,0.00013698,2]
[334060155,1722713444296,-610.33840908,0.00013698,2]
[334060157,1722713444305,-500.0,0.00013698,2]
[334060158,1722713444314,-500.0,0.00013698,2]
[334060160,1722713444323,-575.31951816,0.00013698,2]
[334060162,1722713444332,-500.0,0.00013698,2]
[334060164,1722713444341,-500.0,0.00013698,2]
[334060166,1722713444350,-500.0,0.00013698,2]
[334060168,1722713444359,-500.0,0.00013698,2]
[334060170,1722713444368,-500.0,0.00013698,2]
[334060172,1722713444378,-500.0,0.00013698,2]
[334060174,1722713444387,-196.41574282,0.00013698,2]
[334060175,1722713444402,-367.5275752,0.00013698,2]
[334060177,1722713444411,-500.0,0.00013698,2]
[334060178,1722713444420,-500.0,0.00013698,2]
[334060180,1722713444430,-500.0,0.00013698,2]
[334060181,1722713444539,-521.83545244,0.00013698,2]
[334060182,1722713444549,-500.0,0.00013698,2]
[334060183,1722713444558,-500.0,0.00013698,2]
[334060184,1722713444568,-500.0,0.00013698,2]
[334060185,1722713444577,-500.0,0.00013698,2]
[334060186,1722713444587,-563.01,0.00013698,2]
[334060187,1722713444596,-500.0,0.00013698,2]
[334060188,1722713444606,-500.48732358,0.00013698,2]
[334060189,1722713444616,-500.0,0.00013698,2]
[334060190,1722713444625,-500.0,0.00013698,2]
[334060191,1722713444635,-500.0,0.00013698,2]
[334060192,1722713444644,-500.0,0.00013698,2]
[334060193,1722713444653,-500.0,0.00013698,2]
[334060194,1722713444663,-500.0,0.00013698,2]
[334060195,1722713444672,-500.0,0.00013698,2]
[334060196,1722713444682,-500.0,0.00013698,2]
[334060197,1722713444691,-2022.96,0.00013698,2]
[334060198,1722713444701,-500.0,0.00013698,2]
[334060199,1722713444710,-500.0,0.00013698,2]
[334060200,1722713444719,-500.0,0.00013698,2]
[334060201,1722713444729,-788.65,0.00013698,2]
[334060202,1722713444741,-1496.42,0.00013698,2]
[334060203,1722713444751,-500.0,0.00013698,2]
[334060204,1722713444761,-500.0,0.00013698,2]
[334060205,1722713444771,-500.0,0.00013698,2]
[334060206,1722713444785,-500.0,0.00013698,2]
[334060207,1722713444794,-500.0,0.00013698,2]
[334060208,1722713444803,-500.0,0.00013698,2]
[334060209,1722713444813,-500.0,0.00013698,2]
[334060210,1722713444823,-500.0,0.00013698,2]
[334060211,1722713444832,-500.25558031,0.00013698,2]
[334060212,1722713444842,-500.0,0.00013698,2]
[334060213,1722713444851,-500.0,0.00013698,2]
[334060214,1722713444861,-500.0,0.00013698,2]
[334060215,1722713444871,-500.0,0.00013698,2]
[334060216,1722713444881,-500.0,0.00013698,2]
[334060217,1722713444891,-500.0,0.00013698,2]
[334060218,1722713444901,-526.98226081,0.00013698,2]
[334060219,1722713444911,-500.0,0.00013698,2]
[334060220,1722713444920,-500.0,0.00013698,2]
[334060221,1722713444929,-502.8140107,0.00013698,2]
[334060222,1722713444940,-500.0,0.00013698,2]
[334060223,1722713444954,-542.41,0.00013698,2]
[334060224,1722713444964,-500.0,0.00013698,2]
[334060225,1722713444977,-500.0,0.00013698,2]
[334060226,1722713444988,-502.41947006,0.00013698,2]
[334060227,1722713444998,-500.0,0.00013698,2]
[334060228,1722713445009,-500.0,0.00013698,2]
[334060229,1722713445019,-500.0,0.00013698,2]
[334060230,1722713445032,-500.0,0.00013698,2]
[334060231,1722713445042,-500.0,0.00013698,2]
[334060232,1722713445053,-500.0,0.00013698,2]
[334060233,1722713445066,-500.0,0.00013698,2]
[334060234,1722713445076,-500.0,0.00013698,2]
[334060235,1722713445085,-500.0,0.00013698,2]
[334060236,1722713445095,-500.0,0.00013698,2]
[334060237,1722713445105,-500.0,0.00013698,2]
[334060238,1722713445115,-500.0,0.00013698,2]
[334060239,1722713445125,-500.0,0.00013698,2]
[334060240,1722713445135,-500.0,0.00013698,2]
[334060241,1722713445146,-651.89,0.00013698,2]
[334060242,1722713445155,-500.0,0.00013698,2]
[334060243,1722713445165,-297.264728,0.00013698,2]
[334060244,1722713445174,-297.264728,0.00013698,2]
[334060245,1722713445183,-500.0,0.00013698,2]
[334060246,1722713445192,-459.786153,0.00013698,2]
[334060247,1722713445202,-500.0,0.00013698,2]
[334060248,1722713445211,-500.0,0.00013698,2]
[334060249,1722713445221,-151.0,0.00013698,2]
[334060250,1722713445230,-505.10663485,0.00013698,2]
[334060251,1722713445240,-459.786153,0.00013698,2]
[334060252,1722713445249,-500.0,0.00013698,2]
[334060253,1722713445259,-500.0,0.00013698,2]
[334060254,1722713445269,-500.0,0.00013698,2]
[334060255,1722713445286,-500.0,0.00013698,2]
[334060256,1722713445299,-1821.67853,0.00013699,2]
[334060257,1722713445309,-56033.1821261,0.00013699,2]
[334060258,1722713445319,-3000.0,0.00013699,2]
[334060259,1722713445328,-151.0,0.00013699,2]
[334060260,1722713445338,-151.0,0.00013699,2]
[334060261,1722713445348,-151.0,0.00013699,2]
[334060262,1722713445357,-315.826063,0.00013699,2]
[334060263,1722713445367,-315.826063,0.00013699,2]
[334060264,1722713445376,-151.0,0.00013699,2]
[334060265,1722713445387,-151.0,0.00013699,2]
[334060266,1722713445397,-151.0,0.00013699,2]
[334060267,1722713445407,-151.0,0.00013699,2]
[334060268,1722713445417,-151.0,0.00013699,2]
[334060269,1722713445426,-151.0,0.00013699,2]
[334060270,1722713445435,-151.0,0.00013699,2]
[334060271,1722713445446,-151.0,0.00013699,2]
[334060272,1722713445457,-151.0,0.00013699,2]
[334060273,1722713445466,-151.0,0.00013699,2]
[334060274,1722713445476,-367.05242,0.00013699,2]
[334060275,1722713445486,-367.05242,0.00013699,2]
[334060276,1722713445495,-151.0,0.00013699,2]
[334060277,1722713445506,-151.0,0.00013699,2]
[334060278,1722713445516,-155.458607,0.00013699,2]
[334060279,1722713445531,-155.458607,0.00013699,2]
[334060280,1722713445541,-203.693062,0.00013699,2]
[334060281,1722713445551,-203.693062,0.00013699,2]
[334060282,1722713445562,-297.264728,0.00013699,2]
[334060283,1722713445572,-297.264728,0.00013699,2]
[334060284,1722713445581,-459.786153,0.00013699,2]
[334060285,1722713445591,-151.0,0.00013699,2]
[334060286,1722713445601,-459.786153,0.00013699,2]
[334060287,1722713445610,-150.112233,0.000137,2]
[334060288,1722713445620,-150.112233,0.000137,2]
[334060289,1722713445630,-712.44731384,0.00013843,2]
[334060290,1722713445639,-1780.77,0.00013872,2]
[334060291,1722713445650,-20000.00000001,0.00013872,2]
[334060292,1722713445660,-10683.2328456,0.00013949,2]
[334060294,1722713445669,-500.0,0.00013961,2]
[334060296,1722713445678,-151.0,0.00013962,2]
[334060297,1722713445688,-151.0,0.00013962,2]
[334060299,1722713445698,-155.458607,0.00013962,2]
[334060300,1722713445708,-155.458607,0.00013962,2]
[334060302,1722713445717,-10683.2328456,0.00013962,2]
[334060304,1722713445727,-762.39,0.0001397,2]
[334060306,1722713445737,-762.39,0.00013971,2]
[334060308,1722713445747,-500.0,0.00013971,2]
[334060310,1722713445757,-500.0,0.00013972,2]
[334060312,1722713445767,-500.0,0.00013972,2]
[334060314,1722713445780,-500.0,0.00013972,2]
[334060316,1722713445790,-500.0,0.00013972,2]
[334060319,1722713445805,-500.0,0.00013972,2]
[334060321,1722713445815,-506.65289107,0.00013972,2]
[334060323,1722713445827,-722.73,0.00013972,2]